fUST/lending_fUST_20250405
["ID","MTS","AMOUNT","RATE_DAILY","PERIOD"]
[357143556,1743790232976,-500.0,0.00021495,2]
[357143557,1743790232986,-500.0,0.00021495,2]
[357143558,1743790232995,-802.6,0.00021495,2]
[357143559,1743790233005,-500.0,0.00021495,2]
[357143560,1743790233014,-587.83,0.00021495,2]
[357143561,1743790233024,-500.0,0.00021495,2]
[357143562,1743790233034,-15496.6325408,0.00021495,2]
[357143563,1743790233044,-1029.84305674,0.00021659,3]
[357143564,1743790233055,-500.0,0.00021769,2]
[357143565,1743790233064,-500.0,0.00021769,2]
[357143566,1743790233074,-500.0,0.00021769,2]
[357143567,1743790233083,-500.0,0.00021769,2]
[357143568,1743790233092,-595.03,0.00021769,2]
[357143569,1743790233101,-500.0,0.00021769,2]
[357143570,1743790233111,-500.0,0.00021769,2]
[357143571,1743790233122,-500.0,0.00021769,2]
[357143572,1743790233132,-751.9,0.00021769,2]
[357143573,1743790233145,-500.0,0.00021769,2]
[357143574,1743790233154,-500.0,0.00021769,2]
[357143575,1743790233164,-500.0,0.00021769,2]
[357143576,1743790233174,-500.0,0.00021769,2]
[357143577,1743790233184,-500.0,0.00021769,2]
[357143578,1743790233194,-500.0,0.00021769,2]
[357143579,1743790233203,-520.57,0.00021769,2]
[357143580,1743790233212,-500.0,0.00021769,2]
[357143581,1743790233224,-500.0,0.00021769,2]
[357143582,1743790233234,-500.0,0.00021769,2]
[357143583,1743790233244,-405.90858752,0.00021769,2]
[357143611,1743790238191,-94.09141248,0.00021769,2]
[357143613,1743790238201,-802.6,0.00021769,2]
[357143615,1743790238211,-500.0,0.00021769,2]
[357143617,1743790238223,-587.83,0.00021769,2]
[357143619,1743790238233,-500.0,0.00021769,2]
[357143621,1743790238244,-250.0,0.00021891,2]
[357143623,1743790238253,-183.8430431,0.00021919,2]
[357143625,1743790238263,-500.0,0.00022043,2]
[357143627,1743790238273,-500.0,0.00022043,2]
[357143629,1743790238282,-500.0,0.00022043,2]
[357143631,1743790238295,-500.0,0.00022043,2]
[357143633,1743790238305,-595.03,0.00022043,2]
[357143635,1743790238316,-500.0,0.00022043,2]
[357143637,1743790238329,-500.0,0.00022043,2]
[357143640,1743790238342,-500.0,0.00022043,2]
[357143642,1743790238355,-751.9,0.00022043,2]
[357143645,1743790238368,-500.0,0.00022043,2]
[357143647,1743790238380,-500.0,0.00022043,2]
[357143649,1743790238392,-500.0,0.00022043,2]
[357143651,1743790238402,-500.0,0.00022043,2]
[357143653,1743790238413,-500.0,0.00022043,2]
[357143655,1743790238425,-520.57,0.00022043,2]
[357143657,1743790238436,-500.0,0.00022043,2]
[357143659,1743790238448,-500.0,0.00022043,2]
[357143662,1743790238460,-500.0,0.00022043,2]
[357143664,1743790238471,-500.0,0.00022043,2]
[357143666,1743790238482,-500.0,0.00022043,2]
[357143668,1743790238493,-802.6,0.00022043,2]
[357143671,1743790238505,-500.0,0.00022043,2]
[357143673,1743790238516,-587.83,0.00022043,2]
[357143675,1743790238526,-500.0,0.00022043,2]
[357143677,1743790238539,-500.0,0.00022316,2]
[357143679,1743790238551,-500.0,0.00022316,2]
[357143681,1743790238562,-500.0,0.00022316,2]
[357143684,1743790238575,-500.0,0.00022316,2]
[357143686,1743790238586,-595.03,0.00022316,2]
[357143688,1743790238598,-500.0,0.00022316,2]
[357143690,1743790238609,-500.0,0.00022316,2]
[357143692,1743790238620,-500.0,0.00022316,2]
[357143694,1743790238631,-751.9,0.00022316,2]
[357143697,1743790238642,-500.0,0.00022316,2]
[357143699,1743790238653,-500.0,0.00022316,2]
[357143701,1743790238665,-500.0,0.00022316,2]
[357143703,1743790238677,-500.0,0.00022316,2]
[357143705,1743790238688,-500.0,0.00022316,2]
[357143707,1743790238700,-520.57,0.00022316,2]
[357143710,1743790238711,-500.0,0.00022316,2]
[357143712,1743790238722,-500.0,0.00022316,2]
[357143714,1743790238732,-649.39173641,0.00022316,2]
[357143716,1743790238742,-500.0,0.00022316,2]
[357143717,1743790238752,-500.0,0.00022316,2]
[357143720,1743790238763,-802.6,0.00022316,2]
[357143722,1743790238774,-500.0,0.00022316,2]
[357143724,1743790238785,-587.83,0.00022316,2]
[357143726,1743790238798,-12458.93820146,0.00022415,2]
[357143728,1743790238809,-1029.84305674,0.00022452,4]
[357143731,1743790238820,-500.0,0.00022589,2]
[357143733,1743790238831,-500.0,0.00022589,2]
[357143735,1743790238844,-356.92367542,0.00022589,2]
[357143737,1743790238856,-500.0,0.00022589,2]
[357143740,1743790238868,-500.0,0.00022589,2]
[357143742,1743790238879,-522.19152611,0.00022589,2]
[357143744,1743790238890,-500.0,0.00022589,2]
[357143746,1743790238901,-500.0,0.00022589,2]
[357143748,1743790238912,-500.0,0.00022589,2]
[357143751,1743790238924,-500.0,0.00022589,2]
[357143753,1743790238933,-500.0,0.00022589,2]
[357143755,1743790238943,-500.0,0.00022589,2]
[357143757,1743790238953,-500.0,0.00022589,2]
[357143759,1743790238963,-500.0,0.00022589,2]
[357143761,1743790238973,-246.54461172,0.00022589,2]
[357143763,1743790238982,-500.0,0.00022589,2]
[357143765,1743790238992,-500.0,0.00022589,2]
[357143767,1743790239004,-500.0,0.00022589,2]
[357143770,1743790239015,-500.0,0.00022589,2]
[357143772,1743790239028,-500.0,0.00022589,2]
[357143774,1743790239040,-500.0,0.00022589,2]
[357143776,1743790239051,-500.0,0.00022589,2]
[357143778,1743790239061,-500.0,0.00022589,2]
[357143780,1743790239070,-500.0,0.00022589,2]
[357143783,1743790239081,-500.0,0.00022589,2]
[357143785,1743790239091,-500.0,0.00022589,2]
[357143787,1743790239101,-500.0,0.00022589,2]
[357143789,1743790239111,-500.0,0.00022589,2]
[357143791,1743790239123,-500.0,0.00022589,2]
[357143793,1743790239134,-500.0,0.00022589,2]
[357143795,1743790239146,-616.59186541,0.00022589,2]
[357143797,1743790239158,-500.0,0.00022589,2]
[357143799,1743790239169,-500.0,0.00022589,2]
[357143802,1743790239179,-500.0,0.00022589,2]
[357143804,1743790239189,-500.0,0.00022589,2]
[357143806,1743790239200,-500.0,0.00022589,2]
[357143808,1743790239210,-500.0,0.00022589,2]
[357143809,1743790239221,-500.0,0.00022589,2]
[357143810,1743790239231,-500.0,0.00022589,2]
[357143811,1743790239243,-500.0,0.00022589,2]
[357143812,1743790239253,-500.0,0.00022589,2]
[357143813,1743790239264,-500.0,0.00022589,2]
[357143814,1743790239275,-500.0,0.00022589,2]
[357143815,1743790239288,-500.0,0.00022589,2]
[357143816,1743790239299,-500.0,0.00022589,2]
[357143817,1743790239310,-500.0,0.00022589,2]
[357143818,1743790239322,-500.0,0.00022589,2]
[357143819,1743790239333,-500.0,0.00022589,2]
[357143820,1743790239344,-500.0,0.00022589,2]
[357143821,1743790239354,-500.0,0.0002259,2]
[357143822,1743790239365,-500.0,0.0002259,2]
[357143824,1743790239375,-500.0,0.0002259,2]
[357143826,1743790239385,-500.0,0.0002259,2]
[357143828,1743790239395,-595.03,0.0002259,2]
[357143830,1743790239406,-500.0,0.0002259,2]
[357143832,1743790239416,-500.0,0.0002259,2]
[357143834,1743790239427,-500.0,0.0002259,2]
[357143837,1743790239437,-751.9,0.0002259,2]
[357143839,1743790239447,-500.0,0.0002259,2]
[357143841,1743790239458,-500.0,0.0002259,2]
[357143843,1743790239468,-500.0,0.0002259,2]
[357143845,1743790239478,-500.0,0.0002259,2]
[357143847,1743790239488,-500.0,0.0002259,2]
[357143849,1743790239499,-520.57,0.0002259,2]
[357143852,1743790239509,-500.0,0.0002259,2]
[357143854,1743790239522,-500.0,0.0002259,2]
[357143856,1743790239534,-500.0,0.0002259,2]
[357143858,1743790239546,-500.0,0.0002259,2]
[357143860,1743790239556,-802.6,0.0002259,2]
[357143862,1743790239568,-500.0,0.0002259,2]
[357143864,1743790239579,-587.83,0.0002259,2]
[357143866,1743790239590,-500.0,0.00022864,2]
[357143868,1743790239601,-500.0,0.00022864,2]
[357143871,1743790239613,-500.0,0.00022864,2]
[357143873,1743790239624,-500.0,0.00022864,2]
[357143875,1743790239635,-595.03,0.00022864,2]
[357143877,1743790239645,-500.0,0.00022864,2]
[357143879,1743790239655,-500.0,0.00022864,2]
[357143881,1743790239666,-500.0,0.00022864,2]
[357143883,1743790239677,-751.9,0.00022864,2]
[357143885,1743790239688,-500.0,0.00022864,2]
[357143888,1743790239699,-500.0,0.00022864,2]
[357143891,1743790239709,-500.0,0.00022864,2]
[357143912,1743790239720,-500.0,0.00022864,2]
[357143914,1743790239871,-500.0,0.00022864,2]
[357143916,1743790239881,-500.0,0.00022864,2]
[357143918,1743790239890,-520.57,0.00022864,2]
[357143920,1743790239901,-500.0,0.00022864,2]
[357143922,1743790239910,-500.0,0.00022864,2]
[357143924,1743790239920,-500.0,0.00022864,2]
[357143926,1743790239929,-802.6,0.00022864,2]
[357143928,1743790239939,-500.0,0.00022864,2]
[357143930,1743790239949,-587.83,0.00022864,2]
[357143932,1743790239959,-500.0,0.00022973,2]
[357143934,1743790239968,-500.0,0.00022973,2]
[357143937,1743790239978,-500.0,0.00022973,2]
[357143939,1743790239987,-500.0,0.00022973,2]
[357143941,1743790239997,-500.0,0.00022973,2]
[357143943,1743790240006,-500.0,0.00022973,2]
[357143945,1743790240015,-500.0,0.00022973,2]
[357143947,1743790240025,-202.46781611,0.00022973,2]
[357143949,1743790240034,-500.0,0.00022973,2]
[357143952,1743790240045,-500.0,0.00022973,2]
[357143954,1743790240055,-500.0,0.00022973,2]
[357143955,1743790240064,-360.13760017,0.00022973,2]
[357143957,1743790240073,-500.0,0.00022973,2]
[357143959,1743790240082,-500.0,0.00022973,2]
[357143962,1743790240092,-493.6682333,0.0002299,2]
[357143964,1743790240102,-500.0,0.0002299,2]
[357143966,1743790240111,-500.0,0.0002299,2]
[357143968,1743790240120,-553.51,0.0002299,2]
[357143970,1743790240130,-500.0,0.0002299,2]
[357143972,1743790240139,-500.0,0.0002299,2]
[357143974,1743790240150,-489.18,0.0002299,2]
[357143976,1743790240160,-222.69,0.0002299,2]
[357143978,1743790240169,-564.08,0.0002299,2]
[357143980,1743790240179,-374.18,0.0002299,2]
[357143982,1743790240189,-500.0,0.0002299,2]
[357143984,1743790240199,-150.74,0.0002299,2]
[357143986,1743790240208,-500.0,0.0002299,2]
[357143988,1743790240218,-500.0,0.0002299,2]
[357143989,1743790240228,-500.0,0.0002299,2]
[357143991,1743790240238,-500.0,0.0002299,2]
[357143993,1743790240249,-500.0,0.0002299,2]
[357143995,1743790240260,-364.33781356,0.0002299,2]
[357143997,1743790240270,-228.66191284,0.0002299,2]
[357144000,1743790240280,-500.0,0.0002299,2]
[357144002,1743790240293,-500.0,0.0002299,2]
[357144004,1743790240303,-500.0,0.0002299,2]
[357144005,1743790240312,-500.0,0.0002299,2]
[357144007,1743790240322,-500.0,0.0002299,2]
[357144010,1743790240331,-500.0,0.0002299,2]
[357144012,1743790240341,-500.0,0.0002299,2]
[357144014,1743790240350,-500.0,0.0002299,2]
[357144016,1743790240360,-500.0,0.0002299,2]
[357144017,1743790240369,-500.0,0.0002299,2]
[357144019,1743790240378,-365.92,0.0002299,2]
[357144022,1743790240387,-500.0,0.0002299,2]
[357144024,1743790240397,-500.0,0.0002299,2]
[357144026,1743790240406,-500.0,0.0002299,2]
[357144028,1743790240415,-500.0,0.0002299,2]
[357144030,1743790240424,-500.0,0.00022991,2]
[357144032,1743790240435,-500.0,0.00022991,2]
[357144034,1743790240444,-500.0,0.00022991,2]
[357144036,1743790240453,-500.0,0.00022991,2]
[357144038,1743790240462,-500.0,0.00022991,2]
[357144040,1743790240471,-500.0,0.00022991,2]
[357144042,1743790240481,-500.0,0.00022991,2]
[357144044,1743790240490,-500.0,0.00022991,2]
[357144046,1743790240500,-537.03828472,0.00022991,2]
[357144048,1743790240510,-500.0,0.00022991,2]
[357144050,1743790240519,-500.0,0.00022991,2]
[357144052,1743790240528,-500.0,0.00022991,2]
[357144054,1743790240539,-500.0,0.00022991,2]
[357144056,1743790240549,-249.51,0.00022991,2]
[357144058,1743790240558,-396.0,0.00022997,2]
[357144060,1743790240568,-542.0,0.00023063,2]
[357144062,1743790240578,-1643.0,0.00023063,2]
[357144064,1743790240587,-401.0,0.00023063,2]
[357144066,1743790240597,-500.0,0.00023138,2]
[357144068,1743790240606,-500.0,0.00023138,2]
[357144070,1743790240615,-500.0,0.00023138,2]
[357144072,1743790240624,-500.0,0.00023138,2]
[357144074,1743790240634,-595.03,0.00023138,2]
[357144076,1743790240643,-500.0,0.00023138,2]
[357144078,1743790240652,-500.0,0.00023138,2]
[357144080,1743790240662,-500.0,0.00023138,2]
[357144082,1743790240671,-751.9,0.00023138,2]
[357144084,1743790240680,-500.0,0.00023138,2]
[357144086,1743790240689,-500.0,0.00023138,2]
[357144088,1743790240699,-500.0,0.00023138,2]
[357144090,1743790240708,-500.0,0.00023138,2]
[357144092,1743790240716,-500.0,0.00023138,2]
[357144094,1743790240726,-500.0,0.00023138,2]
[357144096,1743790240735,-520.57,0.00023138,2]
[357144098,1743790240745,-500.0,0.00023138,2]
[357144100,1743790240754,-500.0,0.00023138,2]
[357144102,1743790240763,-500.0,0.00023138,2]
[357144104,1743790240773,-802.6,0.00023138,2]
[357144106,1743790240782,-500.0,0.00023138,2]
[357144108,1743790240793,-587.83,0.00023138,2]
[357144110,1743790240802,-1029.84305674,0.00023245,4]
[357144111,1743790240813,-500.0,0.00023262,2]
[357144113,1743790240823,-500.0,0.00023264,2]
[357144115,1743790240833,-500.0,0.00023264,2]
[357144118,1743790240843,-488.53,0.00023264,2]
[357144120,1743790240852,-500.0,0.00023264,2]
[357144122,1743790240861,-485.01,0.00023264,2]
[357144124,1743790240870,-574.88,0.00023264,2]
[357144126,1743790240880,-162.79,0.00023264,2]
[357144128,1743790240892,-500.0,0.00023264,2]
[357144130,1743790240902,-500.0,0.00023264,2]
[357144132,1743790240911,-500.0,0.00023264,2]
[357144134,1743790240921,-500.0,0.00023264,2]
[357144136,1743790240930,-500.0,0.00023264,2]
[357144138,1743790240939,-500.0,0.00023264,2]
[357144140,1743790240948,-500.0,0.00023264,2]
[357144142,1743790240957,-500.0,0.00023264,2]
[357144144,1743790240967,-500.0,0.00023264,2]
[357144146,1743790240975,-500.0,0.00023264,2]
[357144148,1743790240985,-500.0,0.00023265,2]
[357144150,1743790240995,-500.0,0.00023265,2]
[357144152,1743790241004,-484.78,0.00023265,2]
[357144154,1743790241013,-472.68,0.00023265,2]
[357144156,1743790241022,-500.0,0.00023273,2]
[357144158,1743790241031,-500.0,0.00023273,2]
[357144160,1743790241042,-183.67877057,0.00023273,2]
[357144162,1743790241052,-500.0,0.00023412,2]
[357144164,1743790241062,-500.0,0.00023412,2]
[357144165,1743790241071,-500.0,0.00023412,2]
[357144168,1743790241081,-500.0,0.00023412,2]
[357144169,1743790241090,-500.0,0.00023412,2]
[357144172,1743790241100,-595.03,0.00023412,2]
[357144174,1743790241109,-500.0,0.00023412,2]
[357144176,1743790241119,-500.0,0.00023412,2]
[357144178,1743790241128,-500.0,0.00023412,2]
[357144180,1743790241138,-751.9,0.00023412,2]
[357144182,1743790241151,-500.0,0.00023412,2]
[357144184,1743790241160,-500.0,0.00023412,2]
[357144186,1743790241169,-500.0,0.00023412,2]
[357144188,1743790241178,-500.0,0.00023412,2]
[357144190,1743790241190,-500.0,0.00023412,2]
[357144192,1743790241200,-500.0,0.00023412,2]
[357144194,1743790241209,-520.57,0.00023412,2]
[357144196,1743790241220,-500.0,0.00023412,2]
[357144198,1743790241230,-500.0,0.00023412,2]
[357144200,1743790241240,-500.0,0.00023412,2]
[357144202,1743790241249,-802.6,0.00023412,2]
[357144204,1743790241259,-500.0,0.00023412,2]
[357144206,1743790241270,-587.83,0.00023412,2]
[357144208,1743790241279,-500.0,0.00023538,2]
[357144210,1743790241290,-173.98,0.00023538,2]
[357144212,1743790241300,-500.0,0.00023538,2]
[357144214,1743790241310,-500.0,0.00023538,2]
[357144216,1743790241319,-500.0,0.00023538,2]
[357144218,1743790241328,-500.0,0.00023538,2]
[357144220,1743790241338,-500.0,0.00023538,2]
[357144222,1743790241348,-500.0,0.00023538,2]
[357144224,1743790241357,-391.2,0.00023538,2]
[357144226,1743790241366,-500.0,0.00023538,2]
[357144228,1743790241375,-500.0,0.00023538,2]
[357144230,1743790241384,-500.0,0.00023538,2]
[357144232,1743790241394,-152.29,0.00023539,2]
[357144234,1743790241403,-500.0,0.00023633,2]
[357144236,1743790241412,-500.0,0.00023633,2]
[357144238,1743790241421,-500.0,0.00023633,2]
[357144240,1743790241430,-500.0,0.00023685,2]
[357144242,1743790241440,-500.0,0.00023685,2]
[357144244,1743790241449,-487.4351671,0.00023685,2]
[357144246,1743790241458,-500.0,0.00023686,2]
[357144248,1743790241468,-331.11,0.00023686,2]
[357144250,1743790241476,-500.0,0.00023686,2]
[357144252,1743790241486,-595.03,0.00023686,2]
[357144254,1743790241495,-751.9,0.00023686,2]
[357144256,1743790241504,-500.0,0.00023686,2]
[357144258,1743790241513,-500.0,0.00023686,2]
[357144260,1743790241523,-530.88,0.00023686,2]
[357144261,1743790241532,-520.57,0.00023686,2]
[357144263,1743790241543,-500.0,0.00023686,2]
[357144265,1743790241553,-500.0,0.00023686,2]
[357144268,1743790241564,-500.0,0.00023686,2]
[357144269,1743790241574,-802.6,0.00023686,2]
[357144272,1743790241584,-500.0,0.00023686,2]
[357144273,1743790241595,-587.83,0.00023686,2]
[357144276,1743790241605,-250.7104886,0.00023728,2]
[357144278,1743790241616,-200.0,0.00023797,2]
[357144280,1743790241629,-500.0,0.00023812,2]
[357144282,1743790241640,-500.0,0.00023812,2]
[357144284,1743790241651,-500.0,0.00023812,2]
[357144286,1743790241662,-500.0,0.00023812,2]
[357144287,1743790241672,-500.0,0.00023812,2]
[357144289,1743790241683,-500.0,0.00023812,2]
[357144291,1743790241693,-500.0,0.00023812,2]
[357144292,1743790241703,-500.0,0.00023812,2]
[357144293,1743790241712,-500.0,0.00023812,2]
[357144294,1743790241722,-500.0,0.00023812,2]
[357144295,1743790241731,-500.0,0.00023873,2]
[357144296,1743790241741,-500.0,0.00023873,2]
[357144297,1743790241751,-500.0,0.00023873,2]
[357144298,1743790241761,-500.0,0.00023929,2]
[357144299,1743790241771,-500.0,0.00023929,2]
[357144300,1743790241780,-500.0,0.00023929,2]
[357144301,1743790241791,-500.0,0.0002396,2]
[357144303,1743790241800,-500.0,0.0002396,2]
[357144304,1743790241810,-595.03,0.0002396,2]
[357144306,1743790241820,-751.9,0.0002396,2]
[357144308,1743790241830,-500.0,0.0002396,2]
[357144310,1743790241840,-520.57,0.0002396,2]
[357144312,1743790241850,-500.0,0.0002396,2]
[357144314,1743790241860,-530.64,0.0002396,2]
[357144316,1743790241869,-500.0,0.0002396,2]
[357144318,1743790241879,-802.6,0.0002396,2]
[357144320,1743790241888,-500.0,0.0002396,2]
[357144322,1743790241897,-587.83,0.0002396,2]
[357144324,1743790241906,-2000.0,0.00024,2]
[357144326,1743790241916,-2000.0,0.00024,2]
[357144328,1743790241925,-2000.0,0.00024,2]
[357144331,1743790241935,-2000.0,0.00024,2]
[357144333,1743790241944,-2000.0,0.00024,2]
[357144335,1743790241953,-2000.0,0.00024,2]
[357144337,1743790241962,-2000.0,0.00024,2]
[357144339,1743790241971,-2000.0,0.00024,2]
[357144340,1743790241980,-2000.0,0.00024,2]
[357144342,1743790241990,-2000.0,0.00024,2]
[357144344,1743790241999,-156.5144398,0.00024019,2]
[357144346,1743790242010,-563.7213539,0.00024019,2]
[357144348,1743790242020,-563.7213539,0.00024019,2]
[357144351,1743790242032,-156.5144398,0.00024019,2]
[357144353,1743790242043,-156.5144398,0.00024019,2]
[357144355,1743790242053,-563.7213539,0.00024019,2]
[357144357,1743790242062,-1029.84305674,0.00024038,5]
[357144359,1743790242071,-500.0,0.00024086,2]
[357144361,1743790242079,-500.0,0.00024086,2]
[357144363,1743790242088,-500.0,0.00024086,2]
[357144365,1743790242097,-500.0,0.00024086,2]
[357144367,1743790242106,-500.0,0.00024086,2]
[357144369,1743790242115,-500.0,0.00024086,2]
[357144371,1743790242125,-500.0,0.00024086,2]
[357144373,1743790242134,-500.0,0.00024086,2]
[357144375,1743790242147,-500.0,0.00024086,2]
[357144377,1743790242157,-1123.6335576,0.00024152,2]
[357144379,1743790242167,-1127.4427078,0.00024178,2]
[357144381,1743790242176,-156.5144398,0.00024178,2]
[357144383,1743790242187,-563.7213539,0.00024178,2]
[357144385,1743790242196,-156.5144398,0.00024178,2]
[357144387,1743790242206,-515.12,0.00024234,2]
[357144389,1743790242215,-500.0,0.00024234,2]
[357144391,1743790242225,-595.03,0.00024234,2]
[357144393,1743790242237,-751.9,0.00024234,2]
[357144395,1743790242247,-500.0,0.00024234,2]
[357144397,1743790242257,-520.57,0.00024234,2]
[357144399,1743790242266,-500.0,0.00024234,2]
[357144401,1743790242275,-500.0,0.00024234,2]
[357144403,1743790242284,-802.6,0.00024234,2]
[357144404,1743790242294,-500.0,0.00024234,2]
[357144406,1743790242304,-587.83,0.00024234,2]
[357144408,1743790242313,-500.0,0.0002436,2]
[357144409,1743790242323,-500.0,0.0002436,2]
[357144410,1743790242333,-500.0,0.0002436,2]
[357144411,1743790242344,-500.0,0.0002436,2]
[357144413,1743790242353,-500.0,0.0002436,2]
[357144414,1743790242363,-500.0,0.0002436,2]
[357144416,1743790242372,-500.0,0.0002436,2]
[357144417,1743790242382,-500.0,0.0002436,2]
[357144418,1743790242393,-500.0,0.00024508,2]
[357144419,1743790242403,-595.03,0.00024508,2]
[357144420,1743790242413,-751.9,0.00024508,2]
[357144421,1743790242423,-500.0,0.00024508,2]
[357144422,1743790242433,-520.57,0.00024508,2]
[357144423,1743790242443,-500.0,0.00024508,2]
[357144424,1743790242453,-500.0,0.00024508,2]
[357144425,1743790242463,-802.6,0.00024508,2]
[357144426,1743790242473,-202.72,0.00024508,2]
[357144427,1743790242482,-587.83,0.00024508,2]
[357144428,1743790242492,-500.0,0.00024634,2]
[357144430,1743790242502,-500.0,0.00024634,2]
[357144431,1743790242512,-500.0,0.00024634,2]
[357144433,1743790242522,-500.0,0.00024634,2]
[357144434,1743790242531,-500.0,0.00024634,2]
[357144435,1743790242543,-500.0,0.00024634,2]
[357144437,1743790242552,-500.0,0.00024634,2]
[357144438,1743790242562,-500.0,0.00024634,2]
[357144439,1743790242572,-1654.5206289,0.000247,2]
[357144440,1743790242582,-500.0,0.00024773,2]
[357144441,1743790242593,-500.0,0.00024773,2]
[357144442,1743790242603,-500.0,0.00024782,2]
[357144443,1743790242613,-595.03,0.00024782,2]
[357144444,1743790242624,-751.9,0.00024782,2]
[357144446,1743790242635,-281.33,0.00024782,2]
[357144447,1743790242645,-520.57,0.00024782,2]
[357144448,1743790242656,-500.0,0.00024782,2]
[357144450,1743790242666,-500.0,0.00024782,2]
[357144451,1743790242676,-802.6,0.00024782,2]
[357144452,1743790242686,-587.83,0.00024782,2]
[357144453,1743790242696,-81731.23009247,0.000248,2]
[357144454,1743790242706,-16216.3974952,0.000248,2]
[357144455,1743790242715,-1029.84305674,0.00024831,5]
[357144456,1743790242725,-2702.73291586,0.00024831,2]
[357144457,1743790242735,-563.7213539,0.00024841,2]
[357144458,1743790242746,-156.5144398,0.00024841,2]
[357144459,1743790242757,-563.7213539,0.00024841,2]
[357144460,1743790242768,-156.5144398,0.00024841,2]
[357144461,1743790242778,-156.5144398,0.00024841,2]
[357144462,1743790242788,-563.7213539,0.00024841,2]
[357144463,1743790242799,-563.7213539,0.00024841,2]
[357144464,1743790242809,-156.5144398,0.00024841,2]
[357144465,1743790242819,-563.7213539,0.00024841,2]
[357144466,1743790242828,-156.5144398,0.00024841,2]
[357144467,1743790242839,-156.5144398,0.00024841,2]
[357144469,1743790242849,-422.7009744,0.00024841,2]
[357144471,1743790242859,-156.5144398,0.00024841,2]
[357144472,1743790242869,-2702.73291586,0.0002489,2]
[357144473,1743790242879,-164.04676553,0.000249,3]
[357144474,1743790242890,-627.61801188,0.000249,3]
[357144475,1743790242987,-5761.08,0.000249,14]
[357144476,1743790243015,-2029.09,0.000249,14]
[357144477,1743790243025,-151.0,0.000249,7]
[357144478,1743790243036,-213.5775,0.000249,2]
[357144479,1743790243047,-213.5775,0.000249,2]
[357144481,1743790243057,-11697.06710496,0.000249,2]
[357144486,1743790243131,-227914.28282703,0.000249,2]
[357144487,1743790243147,-64076.7781376,0.000249,2]
[357144488,1743790243213,-19144.59689172,0.000249,2]
[357144493,1743790243386,-60569.58417984,0.000249,2]
[357144494,1743790243436,-1149.024561,0.000249,2]
[357144521,1743790246542,-343.75534736,0.000249,2]
[357144606,1743791438260,-177.317764,0.00013699,2]
[357144607,1743791438270,-409.280806,0.00020228,2]
[357144608,1743791438280,-367.1170483,0.000207,2]
[357144609,1743791438290,-383.3626113,0.00020753,2]
[357144610,1743791438302,-397.8873887,0.00020753,2]
[357144611,1743791438311,-151.0,0.00020882,2]
[357144612,1743791438321,-256.60969646,0.00020882,2]
[357144613,1743791438330,-300.0,0.00020892,2]
[357144614,1743791438339,-671.84,0.00020893,2]
[357144615,1743791438349,-500.0,0.00020893,2]